bitfinex-derivatives/quotes_SOLF0:USTF0_20250106
["timestamp","ask_amount","ask_price","bid_price","bid_amount"]
[1736172021822,2.2858,218.81,218.76,3.7458]
[1736172022219,7.07991253,218.81,218.76,2.2863]
[1736172022417,2.2862,218.78,218.74,3.6997]
[1736172022824,2.2862,218.78,218.74,1.4131]
[1736172023922,9.73991253,218.79,218.72,7.07991253]
[1736172024117,2.2864,218.76,218.71,7.07991253]
[1736172024530,2.2864,218.76,218.73,2.2866]
[1736172026029,9.36621253,218.77,218.73,2.2866]
[1736172026928,9.36621253,218.77,218.74,2.2865]
[1736172027723,2.2863,218.77,218.74,2.2865]
[1736172028726,9.73991253,218.79,218.71,7.07991253]
[1736172028928,9.73991253,218.79,218.68,1.442]
[1736172028929,2.66,218.79,218.76,2.2863]
[1736172029433,4.9461,218.79,218.76,2.2863]
[1736172029731,4.9461,218.79,218.75,2.2864]
[1736172030332,12.02601253,218.79,218.75,2.2864]
[1736172030528,2.66,218.79,218.75,7.07991253]
[1736172030730,5.16390425,218.89,218.77,7.07991253]
[1736172031034,7.07991253,218.84,218.77,7.07991253]
[1736172031233,9.36551253,218.84,218.8,2.2859]
[1736172032037,2.2854,218.85,218.81,7.07991253]
[1736172032333,9.73991253,218.86,218.81,7.07991253]
[1736172032535,9.73991253,218.86,218.82,2.2856]
[1736172032536,12.02531253,218.86,218.82,2.2856]
[1736172032727,12.02531253,218.86,218.82,8.1156]
[1736172033531,4.9452,218.87,218.83,2.2855]
[1736172034134,2.66,218.87,218.82,5.83]
[1736172034328,2.66,218.87,218.83,2.2856]
[1736172034329,2.2853,218.86,218.83,2.2856]
[1736172036737,2.2853,218.86,218.82,8.1157]
[1736172039135,7.07991253,218.83,218.82,5.83]
[1736172040637,9.36551253,218.83,218.82,5.83]
[1736172042637,2.2856,218.83,218.82,5.83]
[1736172044735,2.2863,218.77,218.7,7.07991253]
[1736172044940,9.36621253,218.77,218.73,2.2867]
[1736172046039,2.2864,218.76,218.73,2.2867]
[1736172048245,2.2864,218.76,218.7,7.07991253]
[1736172048437,2.2864,218.76,218.72,2.2868]
[1736172050138,2.2864,218.76,218.73,2.2866]
[1736172053747,2.2863,218.77,218.74,2.2865]
[1736172054442,2.2864,218.76,218.73,2.2866]
[1736172057049,2.2864,218.76,218.73,9.36651253]
[1736172058449,2.2864,218.76,218.73,2.2866]
[1736172061842,2.2866,218.74,218.71,2.2868]
[1736172063452,2.2866,218.74,218.69,9.97821253]
[1736172063654,2.2866,218.74,218.72,2.2868]
[1736172064257,7.07991253,218.76,218.69,2.8983]
[1736172064458,2.2868,218.72,218.7,2.287]
[1736172065550,7.07991253,218.74,218.7,2.287]
[1736172065751,2.2867,218.73,218.7,2.287]
[1736172066650,4.9467,218.73,218.7,2.287]
[1736172067964,7.07991253,218.72,218.64,38.9995879]
[1736172068153,7.07991253,218.72,218.65,7.07991253]
[1736172068545,2.2869,218.71,218.68,2.2872]
[1736172068747,7.07991253,218.72,218.68,2.2872]
[1736172069453,2.66,218.73,218.69,7.07991253]
[1736172070054,9.73991253,218.73,218.64,38.9995879]
[1736172070259,9.73991253,218.73,218.67,7.07991253]
[1736172071559,2.2869,218.72,218.68,2.2872]
[1736172072056,2.2869,218.71,218.68,2.2872]
[1736172072455,9.73991253,218.73,218.68,2.2872]
[1736172072653,2.2868,218.72,218.69,2.287]
[1736172073057,2.66,218.73,218.67,7.07991253]
[1736172073261,7.07991253,218.72,218.67,7.07991253]
[1736172074455,2.2869,218.71,218.68,2.2872]
[1736172074664,4.9469,218.71,218.68,2.2872]
[1736172075657,7.07991253,218.7,218.64,34.40014595]
[1736172075850,7.07991253,218.65,218.53,20.05482608]
[1736172076054,2.66,218.66,218.6,7.07991253]
[1736172076255,4.9475,218.66,218.62,2.2878]
[1736172076954,2.2875,218.65,218.62,2.2878]
[1736172077162,7.07991253,218.65,218.58,2.2882]
[1736172077358,2.2879,218.62,218.58,9.36811253]
[1736172077564,7.07991253,218.65,218.58,9.36811253]
[1736172077952,2.2877,218.64,218.59,2.2881]
[1736172078161,2.66,218.66,218.58,7.07991253]
[1736172078359,2.66,218.66,218.6,7.07991253]
[1736172078864,2.66,218.66,218.62,2.2877]
[1736172079254,7.07991253,218.65,218.62,2.2877]
[1736172079466,7.07991253,218.63,218.59,2.2881]
[1736172079660,7.07991253,218.63,218.56,7.07991253]
[1736172079859,7.07991253,218.61,218.53,1.3837]
[1736172080056,9.36811253,218.59,218.53,1.3837]
[1736172080365,2.66,218.58,218.53,1.3837]
[1736172080556,2.66,218.58,218.55,2.2885]
[1736172080958,2.66,218.58,218.56,2.2884]
[1736172081158,52.32,218.73,218.56,7.07991253]
[1736172081359,7.07991253,218.63,218.56,7.07991253]
[1736172081559,2.66,218.62,218.58,7.07991253]
[1736172081765,2.66,218.64,218.6,7.07991253]
[1736172081959,2.66,218.64,218.62,7.07991253]
[1736172082160,2.66,218.64,218.63,2.2877]
[1736172083462,2.66,218.69,218.66,2.2873]
[1736172083661,2.66,218.69,218.64,7.07991253]
[1736172085562,52.32,218.73,218.66,7.07991253]
[1736172085767,7.07991253,218.76,218.68,7.07991253]
[1736172085965,2.66,218.75,218.68,7.07991253]
[1736172086160,7.07991253,218.72,218.57,2.66]
[1736172086366,7.07991253,218.72,218.66,7.07991253]
[1736172087366,9.73991253,218.75,218.68,7.07991253]
[1736172087869,2.66,218.74,218.7,2.287]
[1736172088259,2.66,218.74,218.68,7.07991253]
[1736172088459,2.66,218.74,218.71,2.2869]
[1736172088660,2.66,218.74,218.68,7.07991253]
[1736172088860,2.66,218.74,218.7,7.07991253]
[1736172089061,7.07991253,218.78,218.7,7.07991253]
[1736172089267,2.66,218.77,218.7,7.07991253]
[1736172089767,4.0206,218.83,218.63,4.2792]
[1736172089968,4.0206,218.83,218.7,7.07991253]
[1736172089969,7.07991253,218.77,218.7,7.07991253]
[1736172090172,9.73991253,218.77,218.7,7.07991253]
[1736172090361,9.73991253,218.77,218.74,2.2865]
[1736172091885,9.73991253,218.77,218.72,2.2868]
[1736172092080,7.07991253,218.75,218.72,2.2868]
[1736172093082,7.07991253,218.75,218.63,6.9392]
[1736172093283,7.07991253,218.73,218.69,2.287]
[1736172093484,7.07991253,218.73,218.66,7.07991253]
[1736172094683,2.2866,218.74,218.66,7.07991253]
[1736172094884,9.36651253,218.74,218.68,7.07991253]
[1736172095280,7.07991253,218.74,218.68,7.07991253]
[1736172095476,9.36641253,218.76,218.68,7.07991253]
[1736172095675,7.07991253,218.76,218.7,7.07991253]
[1736172095880,9.73991253,218.77,218.75,2.2864]
[1736172097282,9.73991253,218.77,218.7,7.07991253]
[1736172097586,7.07991253,218.75,218.68,7.07991253]
[1736172097784,7.07991253,218.73,218.66,7.07991253]
[1736172098586,7.07991253,218.71,218.69,2.287]
[1736172099881,9.36681253,218.71,218.67,2.2872]
[1736172100184,2.66,218.72,218.63,2.8461]
[1736172100185,7.07991253,218.69,218.63,2.8461]
[1736172101284,7.07991253,218.69,218.64,7.07991253]
[1736172101586,7.07991253,218.71,218.64,7.07991253]
[1736172101782,7.07991253,218.71,218.69,2.2871]
[1736172103086,2.66,218.72,218.67,7.07991253]
[1736172103287,2.66,218.72,218.71,2.2869]
[1736172104683,2.66,218.74,218.73,2.2867]
[1736172105583,2.66,218.74,218.71,2.2868]
[1736172106191,7.07991253,218.75,218.67,7.07991253]
[1736172106890,2.2866,218.74,218.67,7.07991253]
[1736172107092,9.73991253,218.75,218.69,7.07991253]
[1736172107292,2.66,218.75,218.69,7.07991253]
[1736172107688,2.66,218.76,218.71,7.07991253]
[1736172108692,7.07991253,218.77,218.74,2.2865]
[1736172108896,4.0206,218.83,218.71,7.07991253]
[1736172109096,7.07991253,218.78,218.71,7.07991253]
[1736172109291,7.07991253,218.78,218.73,2.2867]
[1736172109491,7.07991253,218.76,218.63,2.8461]
[1736172109695,9.73991253,218.76,218.69,7.07991253]
[1736172109995,12.02631253,218.76,218.72,2.2867]
[1736172110992,12.02631253,218.76,218.69,7.07991253]
[1736172111193,9.73991253,218.76,218.73,2.2866]
[1736172111394,9.73991253,218.76,218.63,2.8461]
[1736172111596,7.07991253,218.74,218.68,7.07991253]
[1736172111793,7.07991253,218.74,218.72,2.2867]
[1736172112596,2.66,218.76,218.75,2.2865]
[1736172112897,2.66,218.76,218.72,7.07991253]
[1736172112898,2.66,218.76,218.7,7.07991253]
[1736172113698,2.66,218.76,218.74,2.2865]
[1736172114498,2.66,218.76,218.7,7.07991253]
[1736172114699,2.66,218.76,218.75,2.2865]
[1736172114896,1.171,218.89,218.74,7.07991253]
[1736172115098,7.07991253,218.82,218.74,7.07991253]
[1736172115303,9.36571253,218.82,218.78,2.2861]
[1736172116599,2.2859,218.81,218.78,2.2861]
[1736172116799,2.64,218.8,218.78,2.2861]
[1736172117205,9.71991253,218.8,218.77,2.2862]
[1736172117499,7.07991253,218.78,218.72,7.07991253]
[1736172117908,2.2861,218.79,218.76,2.2863]
[1736172118106,9.71991253,218.8,218.72,7.07991253]
[1736172118405,9.71991253,218.8,218.74,7.07991253]
[1736172118606,12.00591253,218.8,218.78,2.2861]
[1736172119708,9.36591253,218.8,218.78,2.2861]
[1736172119911,9.71991253,218.8,218.78,2.2861]
[1736172121310,12.00591253,218.8,218.77,2.2862]
[1736172121506,9.71991253,218.8,218.74,7.07991253]
[1736172121707,7.07991253,218.82,218.81,2.2858]
[1736172121911,2.8211,218.89,218.78,7.07991253]
[1736172122113,2.64,218.85,218.78,7.07991253]
[1736172122316,7.07991253,218.86,218.78,7.07991253]
[1736172122612,9.71991253,218.86,218.78,7.07991253]
[1736172123401,12.00521253,218.86,218.83,2.2855]
[1736172124112,2.64,218.86,218.8,7.07991253]
[1736172124310,2.64,218.86,218.85,2.2854]
[1736172125518,2.285,218.89,218.85,2.2854]
[1736172125810,12.00501253,218.88,218.85,2.2854]
[1736172127207,1.3673,218.94,218.85,2.2854]
[1736172127403,9.36481253,218.9,218.82,7.07991253]
[1736172127610,7.07991253,218.88,218.82,7.07991253]
[1736172127908,7.07991253,218.88,218.86,2.2852]
[1736172132721,7.07991253,218.88,218.87,2.2852]
[1736172135921,9.36481253,218.9,218.87,2.2852]
[1736172137812,2.2849,218.9,218.87,2.2852]
[1736172139426,12.00481253,218.91,218.87,2.2851]
[1736172139625,7.07991253,218.89,218.87,2.2851]
[1736172141121,9.71991253,218.91,218.9,2.2849]
[1736172142525,12.00471253,218.91,218.88,2.2851]
[1736172142726,7.07991253,218.89,218.88,2.2851]
[1736172143223,4.9248,218.91,218.88,2.2851]
[1736172143627,9.71991253,218.91,218.88,2.2851]
[1736172144528,12.00471253,218.91,218.88,2.2851]
[1736172145218,9.71991253,218.91,218.88,2.2851]
[1736172146427,2.64,218.91,218.9,2.2849]
[1736172146624,7.07991253,218.91,218.9,2.2849]
[1736172147224,1.4345,219.01,218.91,2.2847]
[1736172147225,2.2845,218.95,218.91,2.2847]
[1736172147429,7.07991253,218.94,218.87,7.07991253]
[1736172147627,7.07991253,218.92,218.87,7.07991253]
[1736172147827,2.2845,218.95,218.87,7.07991253]
[1736172148025,7.07991253,218.92,218.86,1.4231]
[1736172148228,2.2845,218.95,218.86,8.50301253]
[1736172148532,7.07991253,218.92,218.86,8.50301253]
[1736172148927,7.07991253,218.92,218.87,2.2851]
[1736172149234,7.07991253,218.9,218.86,1.4231]
[1736172150329,7.07991253,218.9,218.89,2.285]
[1736172150534,7.07991253,218.9,218.86,1.4231]
[1736172151036,7.07991253,218.9,218.87,2.2851]
[1736172151336,7.07991253,218.9,218.86,1.4231]
[1736172151533,7.07991253,218.9,218.87,2.2851]
[1736172152633,7.07991253,218.88,218.86,2.2853]
[1736172153137,7.07991253,218.88,218.79,1.395]
[1736172153332,9.36511253,218.88,218.84,2.2854]
[1736172153537,2.64,218.93,218.81,7.07991253]
[1736172153736,7.07991253,218.89,218.83,7.07991253]
[1736172154040,7.07991253,218.89,218.87,2.2852]
[1736172154830,7.07991253,218.89,218.83,7.07991253]
[1736172155029,7.07991253,218.89,218.88,2.2851]
[1736172155439,7.07991253,218.9,218.88,2.2851]
[1736172158630,2.8679726,219.02,218.87,7.07991253]
[1736172158631,130.164745,219.02,218.87,7.07991253]
[1736172158834,130.164745,219.02,218.89,7.07991253]
[1736172158835,7.07991253,218.96,218.89,7.07991253]
[1736172159130,130.164745,219.02,218.89,7.07991253]
[1736172159439,7.07991253,218.96,218.89,7.07991253]
[1736172159839,9.71991253,218.96,218.89,7.07991253]
[1736172160437,9.71991253,218.96,218.94,2.2844]
[1736172160835,2.8679726,219.02,218.93,7.07991253]
[1736172161036,7.07991253,218.99,218.93,7.07991253]
[1736172161331,7.07991253,218.97,218.9,1.4298]
[1736172161539,7.07991253,218.97,218.9,8.50971253]
[1736172161840,7.07991253,218.95,218.9,1.4298]
[1736172162041,7.07991253,218.93,218.86,7.07991253]
[1736172162237,9.36451253,218.93,218.89,2.2849]
[1736172162842,7.07991253,218.93,218.9,2.2848]
[1736172164445,2.2845,218.94,218.91,2.2848]
[1736172164649,7.07991253,218.93,218.91,2.2848]
[1736172169356,2.2849,218.9,218.87,2.2852]
[1736172169550,9.36481253,218.9,218.87,2.2852]
[1736172169749,7.07991253,218.9,218.87,2.2852]
[1736172170152,7.07991253,218.9,218.88,2.2851]
[1736172170351,7.07991253,218.92,218.88,2.2851]
[1736172170653,9.71991253,218.94,218.91,2.2847]
[1736172171148,9.71991253,218.94,218.89,7.07991253]
[1736172171951,9.71991253,218.94,218.9,2.2848]
[1736172172155,9.71991253,218.94,218.89,7.07991253]
[1736172172656,9.71991253,218.94,218.93,2.2846]
[1736172172854,2.64,218.94,218.93,2.2846]
[1736172174452,2.64,218.98,218.93,2.2846]
[1736172174656,2.64,218.98,218.91,7.07991253]
[1736172175058,2.64,218.98,218.96,2.2842]
[1736172175855,2.64,218.98,218.91,7.07991253]
[1736172176157,7.07991253,218.97,218.95,2.2844]
[1736172179658,2.2843,218.96,218.93,2.2845]
[1736172180962,9.36411253,218.97,218.93,2.2845]
[1736172181760,2.2843,218.96,218.93,2.2845]
[1736172181962,7.07991253,218.95,218.93,2.2845]
[1736172182863,7.07991253,218.95,218.8,1.4298]
[1736172183064,7.07991253,218.88,218.81,7.07991253]
[1736172183260,9.71991253,218.88,218.83,2.2856]
[1736172183565,9.71991253,218.88,218.8,1.3666]
[1736172183755,7.07991253,218.85,218.8,1.3666]
[1736172184559,9.36561253,218.83,218.78,2.2861]
[1736172184760,12.00561253,218.83,218.78,2.2861]
[1736172185056,2.64,218.83,218.79,2.286]
[1736172185253,2.64,218.83,218.78,7.07991253]
[1736172185863,2.64,218.83,218.79,2.286]
[1736172186465,2.64,218.83,218.81,2.2858]
[1736172186960,2.64,218.83,218.8,7.07991253]
[1736172187154,4.9253,218.87,218.82,9.36551253]
[1736172187864,2.64,218.87,218.83,2.2855]
[1736172189160,2.64,218.87,218.84,2.2855]
[1736172190259,2.64,218.87,218.84,7.07991253]
[1736172190456,2.64,218.87,218.85,2.2853]
[1736172190662,2.64,218.89,218.85,2.2853]
[1736172191766,2.2849,218.9,218.85,2.2853]
[1736172191962,4.9249,218.9,218.86,2.2853]
[1736172193467,2.285,218.89,218.86,2.2853]
[1736172194675,9.36491253,218.89,218.86,2.2853]
[1736172198373,12.00491253,218.89,218.86,2.2853]
[1736172198872,12.00491253,218.89,218.84,7.07991253]
[1736172199074,12.00491253,218.89,218.85,2.2854]
[1736172200268,9.71991253,218.89,218.85,2.2854]
[1736172200484,2.2851,218.88,218.84,9.36541253]
[1736172201174,2.2855,218.84,218.8,2.2859]
[1736172201368,7.07991253,218.83,218.8,2.2859]
[1736172201573,7.07991253,218.81,218.77,1.45]
[1736172201772,2.286,218.8,218.75,7.07991253]
[1736172202976,2.286,218.8,218.74,1.3805]
[1736172203377,7.07991253,218.81,218.76,2.2863]
[1736172205273,7.07991253,218.81,218.77,2.2862]
[1736172207178,7.07991253,218.81,218.78,2.2861]
[1736172208074,1.5059,218.9,218.74,1.3805]
[1736172208075,1.5059,218.9,218.79,7.07991253]
[1736172208271,7.07991253,218.89,218.81,7.07991253]
[1736172208578,2.64,218.88,218.83,7.07991253]
[1736172208782,7.07991253,218.91,218.83,7.07991253]
[1736172208783,2.64,218.89,218.83,7.07991253]
[1736172208974,2.64,218.89,218.85,7.07991253]
[1736172209169,2.6621,218.97,218.89,2.285]
[1736172209170,9.36441253,218.94,218.89,2.285]
[1736172209478,2.64,218.93,218.87,7.07991253]
[1736172209677,7.07991253,218.92,218.89,2.2849]
[1736172210576,7.07991253,218.92,218.8,4.1472]
[1736172210877,7.07991253,218.9,218.87,2.2852]
[1736172211069,7.07991253,218.88,218.82,7.07991253]
[1736172211269,9.71991253,218.88,218.82,7.07991253]
[1736172212074,2.64,218.88,218.84,7.07991253]
[1736172212273,2.64,218.88,218.8,1.5072]
[1736172212274,2.64,218.88,218.86,7.07991253]
[1736172212477,2.64,218.88,218.8,1.5072]
[1736172212680,2.64,218.88,218.86,7.07991253]
[1736172212870,9.71991253,218.92,218.86,7.07991253]
[1736172213075,9.71991253,218.92,218.8,1.5072]
[1736172213076,2.64,218.91,218.8,1.5072]
[1736172213276,7.07991253,218.9,218.8,1.5072]
[1736172213578,7.07991253,218.9,218.83,7.07991253]
[1736172214381,2.64,218.91,218.85,7.07991253]
[1736172214879,2.64,218.91,218.87,2.2851]
[1736172215375,7.07991253,218.9,218.87,2.2851]
[1736172216878,2.64,218.91,218.87,7.07991253]
[1736172217278,9.71991253,218.95,218.9,2.2848]
[1736172217473,7.07991253,218.95,218.89,7.07991253]
[1736172217880,7.07991253,218.95,218.87,7.07991253]
[1736172218386,7.07991253,218.95,218.92,2.2846]
[1736172218579,7.07991253,218.95,218.87,7.07991253]
[1736172219078,7.07991253,218.95,218.92,2.2847]
[1736172219485,7.07991253,218.93,218.87,7.07991253]
[1736172219680,7.07991253,218.93,218.89,2.2849]
[1736172220085,9.36451253,218.93,218.89,2.2849]
[1736172220284,12.00451253,218.93,218.89,2.2849]
[1736172221586,12.00451253,218.93,218.9,2.2849]
[1736172222187,9.71991253,218.93,218.9,2.2849]
[1736172224693,7.07991253,218.91,218.86,2.2853]
[1736172224891,7.07991253,218.89,218.82,8.55311253]
[1736172226388,9.36501253,218.89,218.85,2.2853]
[1736172226791,7.07991253,218.87,218.82,1.4732]
[1736172226991,6.65090203,219.01,218.66,49.55699849]
[1736172226992,7.07991253,218.85,218.66,49.55699849]
[1736172227292,7.07991253,218.85,218.78,7.07991253]
[1736172227692,7.07991253,218.83,218.78,7.07991253]
[1736172228293,7.07991253,218.83,218.81,2.2858]
[1736172229091,7.07991253,218.85,218.82,2.2857]
[1736172230291,2.2854,218.85,218.82,2.2857]
[1736172230492,9.36531253,218.85,218.82,2.2857]
[1736172230898,7.07991253,218.85,218.82,2.2857]
[1736172233193,7.07991253,218.83,218.8,2.2859]
[1736172233393,7.07991253,218.81,218.76,32.20746271]
[1736172233600,2.64,218.8,218.76,32.20746271]
[1736172234096,2.64,218.8,218.76,39.28737524]
[1736172234298,2.64,218.8,218.79,2.286]
[1736172236197,2.64,218.84,218.82,2.2856]
[1736172237996,9.71991253,218.84,218.78,7.07991253]
[1736172238298,2.2857,218.83,218.79,2.286]
[1736172241100,7.07991253,218.82,218.76,32.20746271]
[1736172241302,7.07991253,218.8,218.76,32.20746271]
[1736172241490,7.07991253,218.78,218.73,3.55888123]
[1736172241692,4.57,218.9,218.63,4.5754]
[1736172241693,7.07991253,218.76,218.68,7.07991253]
[1736172241898,7.07991253,218.74,218.64,1.4679]
[1736172242397,9.36661253,218.74,218.7,2.2869]
[1736172242597,2.64,218.73,218.7,2.2869]
[1736172243393,2.64,218.73,218.68,7.07991253]
[1736172243701,2.64,218.73,218.72,2.2868]
[1736172244898,2.64,218.73,218.7,2.287]
[1736172246400,2.64,218.73,218.71,2.2869]
[1736172246600,2.64,218.73,218.69,7.07991253]
[1736172247200,2.64,218.73,218.67,7.07991253]
[1736172247502,7.07991253,218.72,218.65,7.07991253]
[1736172248697,9.36671253,218.72,218.68,2.2872]
[1736172248896,7.07991253,218.7,218.63,2.8437]
[1736172249202,7.07991253,218.7,218.64,7.07991253]
[1736172249596,9.36691253,218.7,218.66,2.2874]
[1736172250199,9.36691253,218.7,218.65,2.2875]
[1736172251695,9.36691253,218.7,218.66,2.2874]
[1736172252503,2.287,218.7,218.66,2.2874]
[1736172252802,2.64,218.76,218.68,7.07991253]
[1736172252992,2.64,218.76,218.72,7.07991253]
[1736172253195,2.64,218.76,218.74,2.2865]
[1736172253804,2.64,218.76,218.72,7.07991253]
[1736172254004,2.64,218.76,218.75,2.2865]
[1736172254304,9.36611253,218.78,218.75,2.2865]
[1736172254508,2.64,218.77,218.75,2.2865]
[1736172255307,7.07991253,218.76,218.73,2.2866]
[1736172255508,2.2865,218.75,218.7,7.07991253]
[1736172255806,7.07991253,218.76,218.73,2.2867]
[1736172256005,2.64,218.77,218.72,7.07991253]
[1736172256403,7.07991253,218.78,218.76,2.2864]
[1736172256603,2.81422985,218.83,218.74,7.07991253]
[1736172256806,2.64,218.79,218.74,7.07991253]
[1736172257109,2.64,218.79,218.78,2.2862]
[1736172257409,7.07991253,218.8,218.72,7.07991253]
[1736172257610,2.64,218.79,218.72,7.07991253]
[1736172258012,2.64,218.79,218.77,2.2863]
[1736172258207,2.64,218.79,218.74,7.07991253]
[1736172259411,2.64,218.79,218.78,2.2862]
[1736172259611,2.68,218.8,218.74,7.07991253]
[1736172260299,2.68,218.8,218.79,2.286]
[1736172260504,7.07991253,218.82,218.76,7.07991253]
[1736172260906,2.68,218.83,218.81,2.2858]
[1736172261509,7.07991253,218.82,218.79,2.286]
[1736172262113,2.68,218.83,218.81,2.2858]
[1736172262317,2.68,218.83,218.76,7.07991253]
[1736172262907,2.68,218.83,218.78,2.2861]
[1736172263216,2.68,218.83,218.76,7.07991253]
[1736172263416,2.68,218.83,218.81,2.2858]
[1736172263713,7.07991253,218.84,218.78,7.07991253]
[1736172263913,9.75991253,218.84,218.78,7.07991253]
[1736172264111,1.4718,218.89,218.8,7.07991253]
[1736172264316,2.68,218.85,218.84,2.2855]
[1736172264511,2.68,218.86,218.84,2.2855]
[1736172265818,2.68,218.86,218.8,7.07991253]
[1736172266114,2.68,218.86,218.83,2.2856]
[1736172267016,2.2851,218.89,218.8,7.07991253]
[1736172267220,9.75991253,218.88,218.8,7.07991253]
[1736172268416,12.04501253,218.88,218.8,7.07991253]
[1736172268815,2.2854,218.85,218.76,2.2863]
[1736172269015,7.07991253,218.84,218.76,7.07991253]
[1736172269216,2.68,218.83,218.76,7.07991253]
[1736172269418,2.2857,218.82,218.78,2.2861]
[1736172270619,2.68,218.83,218.78,7.07991253]
[1736172270818,4.9657,218.83,218.78,7.07991253]
[1736172271020,2.2857,218.83,218.78,7.07991253]
[1736172272519,2.2857,218.83,218.79,2.2859]
[1736172275124,7.07991253,218.8,218.68,4.4024]
[1736172275317,7.07991253,218.76,218.68,4.4024]
[1736172275521,7.07991253,218.74,218.68,4.4024]
[1736172275712,7.07991253,218.74,218.61,38.3043641]
[1736172275917,7.07991253,218.74,218.67,7.07991253]
[1736172276513,2.68,218.75,218.69,7.07991253]
[1736172276816,7.07991253,218.74,218.62,4.1456]
[1736172277013,13.72899474,218.75,218.62,4.1456]
[1736172277821,13.72899474,218.75,218.63,11.04899474]
[1736172278717,2.2868,218.72,218.67,2.2873]
[1736172278917,11.04899474,218.72,218.62,4.1456]
[1736172279211,2.2871,218.69,218.63,2.2876]
[1736172279419,2.68,218.68,218.62,4.1456]
[1736172280120,2.68,218.68,218.65,2.2874]
[1736172280423,2.68,218.68,218.62,4.1456]
[1736172281325,2.68,218.69,218.63,11.04899474]
[1736172281721,2.68,218.69,218.68,2.2872]
[1736172282621,2.68,218.7,218.63,11.04899474]
[1736172283128,2.68,218.7,218.69,2.2871]
[1736172284027,2.68,218.7,218.63,11.04899474]
[1736172284228,2.68,218.7,218.68,2.2872]
[1736172285327,2.68,218.72,218.68,2.2872]
[1736172286628,4.9668,218.72,218.68,2.2872]
[1736172289426,11.04899474,218.78,218.66,11.04899474]
[1736172289630,2.2866,218.75,218.71,2.2868]
[1736172290327,2.7,218.74,218.66,11.04899474]
[1736172291327,4.9867,218.74,218.66,11.04899474]
[1736172291832,2.2867,218.73,218.69,2.287]
[1736172292527,2.2867,218.73,218.7,2.287]
[1736172293433,13.74899474,218.74,218.69,2.2871]
[1736172293626,11.04899474,218.71,218.62,4.1456]
[1736172293830,11.04899474,218.68,218.48,6.19462481]
[1736172294027,11.04899474,218.68,218.55,12.45299474]
[1736172294028,2.7,218.67,218.55,12.45299474]
[1736172294327,2.7,218.67,218.56,1.5114]
[1736172294835,11.04899474,218.71,218.58,11.04899474]
[1736172295030,2.7,218.7,218.58,11.04899474]
[1736172296532,2.287,218.7,218.65,2.2874]
[1736172296733,2.7,218.69,218.65,2.2874]
[1736172298029,4.9871,218.69,218.65,2.2874]
[1736172299434,2.7,218.69,218.67,2.2873]
[1736172300437,9.77253913,218.69,218.62,7.07253913]
[1736172301145,2.2872,218.68,218.64,2.2875]
[1736172302143,2.2872,218.68,218.65,2.2875]
[1736172302348,2.2873,218.67,218.62,7.07253913]
[1736172302847,7.07253913,218.67,218.62,2.2877]
[1736172303044,7.07253913,218.67,218.57,1.3807]
[1736172303349,7.07253913,218.65,218.61,2.2878]
[1736172303547,2.7,218.64,218.61,2.2878]
[1736172304144,7.07253913,218.63,218.55,1.404]
[1736172304348,7.07253913,218.61,218.55,1.404]
[1736172304845,7.07253913,218.57,218.43,5.6549]
[1736172305056,7.07253913,218.55,218.44,1.3923]
[1736172305341,1.4606,218.63,218.47,7.07253913]
[1736172305342,7.07253913,218.53,218.47,7.07253913]
[1736172305547,2.7,218.52,218.45,7.07253913]
[1736172305942,7.07253913,218.51,218.45,7.07253913]
[1736172306246,7.07253913,218.49,218.43,2.9549]
[1736172306443,2.7,218.52,218.44,7.07253913]
[1736172306638,9.77253913,218.51,218.44,7.07253913]
[1736172306838,2.7,218.5,218.44,7.07253913]
[1736172307042,2.7,218.5,218.45,2.2895]
[1736172307644,2.7,218.5,218.47,2.2894]
[1736172308544,11.0704452,218.54,218.43,2.9549]
[1736172308746,11.0704452,218.57,218.46,11.0704452]
[1736172308941,11.0704452,218.6,218.43,2.9549]
[1736172309243,2.7,218.59,218.54,2.2886]
[1736172309447,2.7,218.59,218.49,11.0704452]